Cogmind - Beta 11 @@@ ROGUE MODE // 2022.03.23 @ 01:47:08 Player: lumberblack Result: Destroyed by G-47 Trooper with Particle Gun Performance ------------- Evolutions (2) 1000 Regions Visited (4) 800 Robots Destroyed (0) 0 Value Destroyed (0) 0 Prototype IDs (2) 40 Alien Tech Used (0) 0 Bonus (470) 470 TOTAL SCORE: 2310 Bonus ------- Pacifist 470 Cogmind --------- Core Integrity 0/550 Matter 275/300 Energy 100/100 System Corruption 0% Temperature Cool (9) Movement Core (50) Location -8/Materials Parts ------- > --- POWER (1) -------- (None) > --- PROPULSION (4) --- (None) > --- UTILITY (4) ------ Advanced Visual Processing Unit > --- WEAPON (2) ------- (None) > --- INVENTORY (5) ---- Mining Laser Peak State ------------ > --- POWER ------------ (None) > --- PROPULSION ------- Light Treads > --- UTILITY ---------- Improved Light Armor Plating System Shield System Shield > --- WEAPON ----------- (None) > --- INVENTORY -------- Mining Laser [Rating: 10] Favorites ----------- Power Ion Engine Engine Ion Engine Propulsion Light Treads Treads Light Treads Leg Aluminum Leg Flight Unit Cesium-ion Thruster Utility Cooling System Device Cooling System Storage Small Storage Unit Processor Advanced Visual Processing Unit Hackware System Shield Protection Improved Light Armor Plating Weapon Light Assault Rifle Ballistic Gun Light Assault Rifle Build | -11 -10 -10 -9 -8 ------- Run | Scr Mat Min Mat Mat Slots Evolved 4 | . . . 2 2 Power . | . . . . . Propulsion 2 | . . . 1 1 Utility 2 | . . . 1 1 Weapon . | . . . . . Parts Attached 9 | 2 . . 1 6 Power . | . . . . . Engine . | . . . . . Core . | . . . . . Reactor . | . . . . . Propulsion 3 | 2 . . . 1 Treads 2 | 2 . . . . Leg . | . . . . . Wheel . | . . . . . Hover . | . . . . . Flight 1 | . . . . 1 Utility 6 | . . . 1 5 Device 1 | . . . 1 . Storage . | . . . . . Processor 1 | . . . . 1 Hackware 2 | . . . . 2 Protection 2 | . . . . 2 Artifact . | . . . . . Weapon . | . . . . . Energy Gun . | . . . . . Energy Cannon . | . . . . . Ballistic Gun . | . . . . . Ballistic Cannon . | . . . . . Launcher . | . . . . . Special Weapon . | . . . . . Impact Weapon . | . . . . . Slashing Weapon . | . . . . . Piercing Weapon . | . . . . . Special Melee Weapon . | . . . . . Unidentified Prototypes . | . . . . . Parts Lost 6 | . . . 1 5 Power . | . . . . . Propulsion 3 | . . . 1 2 Utility 3 | . . . . 3 Weapon . | . . . . . Highest Loss Streak 5 | . . . 1 5 To Critical Strikes . | . . . . . Average Slot Usage (%) 26 | . 28 28 28 18 Treads 24 | . 28 28 18 3 Naked Turns . | . . . . . Heaviest Build 3 | . . . 2 3 Greatest Support 5 | 3 3 3 3 5 Greatest Overweight (x) . | . . . . . Average Overweight (x) . | . . . . . Largest Inventory Capacity 8 | 8 5 5 5 5 Average Capacity 5 | 6 5 5 5 5 Most Carried 6 | 6 1 1 1 1 Average Carried 1 | 3 . 1 1 1 Final Capacity 5 | 5 5 5 5 5 Final Carried 1 | . 1 1 1 1 Class Distribution -------------------- 100% | Mutant Dominant Class ---------------- Mutant | -10/Materials Mutant | -10/Mines Mutant | -9/Materials Mutant | -8/Materials Resources | -11 -10 -10 -9 -8 ----------- Run | Scr Mat Min Mat Mat Matter Collected 227 | 200 . 17 10 . Remotely . | . . . . . Salvage Created . | . . . . . Parts . | . . . . . Haulers Intercepted . | . . . . . Recyclers Shooed . | . . . . . Parts Field Recycled . | . . . . . Retrieved Matter . | . . . . . Parts Self-Destructed . | . . . . . Prevented . | . . . . . Kills | -11 -10 -10 -9 -8 ------- Run | Scr Mat Min Mat Mat Combat Hostiles Destroyed . | . . . . . Classes Destroyed . | . . . . . Best Kill Streak . | . . . . . Combat Bots Only . | . . . . . Max Kills in Single Turn . | . . . . . Gunslinging . | . . . . . Exploded . | . . . . . Melee . | . . . . . Uniques/NPCs Destroyed . | . . . . . Combat | -11 -10 -10 -9 -8 -------- Run | Scr Mat Min Mat Mat Damage Taken 1263 | . 78 2 341 842 Core 693 | . 11 . 132 550 Absorbed by Shields . | . . . . . Core Remaining (%) 87 | 100 . 95 67 . Volleys Fired . | . . . . . Largest . | . . . . . Hottest . | . . . . . Shots Fired . | . . . . . Gun . | . . . . . Cannon . | . . . . . Launcher . | . . . . . Special . | . . . . . Kinetic . | . . . . . Thermal . | . . . . . Explosive . | . . . . . Electromagnetic . | . . . . . Robot Hit Streak . | . . . . . Robot Miss Streak . | . . . . . Penetration Max . | . . . . . Secondary Targets . | . . . . . Shots Hit Robots . | . . . . . Core Hits 2 | . . . 2 . Critical Kills . | . . . . . Critical Parts Destroyed . | . . . . . Critical Strikes . | . . . . . Melee Attacks . | . . . . . Impact . | . . . . . Slashing . | . . . . . Piercing . | . . . . . Sneak Attacks . | . . . . . Combat Hostiles . | . . . . . Follow-up Attacks . | . . . . . Damage Inflicted 38 | . . 5 23 10 Guns . | . . . . . Cannons . | . . . . . Explosions . | . . . . . Melee . | . . . . . Ramming 38 | . . 5 23 10 Kinetic . | . . . . . Thermal . | . . . . . Explosive . | . . . . . Electromagnetic . | . . . . . Impact . | . . . . . Slashing . | . . . . . Piercing . | . . . . . Highest Corruption . | . . . . . Average Corruption . | . . . . . Corruption Purged . | . . . . . Corruption Blocked . | . . . . . Overload Shots . | . . . . . Overflow Damage . | . . . . . Projectiles . | . . . . . Explosions . | . . . . . Melee . | . . . . . Knockbacks . | . . . . . Impact . | . . . . . Kinetic . | . . . . . Secondary . | . . . . . Self-Inflicted Damage 18 | . . 2 11 5 Shots . | . . . . . Rammed 7 | . . 1 4 2 Targets Rammed 7 | . . 1 4 2 Kicked . | . . . . . Crushed . | . . . . . Highest Temperature 2 | . 2 . . . Average Temperature 2 | . 2 . . . Received Heat Transfer 327 | . 63 . 39 225 Siege Activations . | . . . . . Robots Corrupted . | . . . . . Combat Hostiles . | . . . . . Parts Fried . | . . . . . Impact Corruptions . | . . . . . Robots Melted . | . . . . . Combat Hostiles . | . . . . . Parts Melted . | . . . . . Heat Transferred . | . . . . . Parts Sabotaged . | . . . . . Parts Stolen . | . . . . . Parts Stripped . | . . . . . Power Chain Reactions . | . . . . . Missiles Intercepted . | . . . . . Alert | -11 -10 -10 -9 -8 ------- Run | Scr Mat Min Mat Mat Peak Influence 178 | . 14 5 50 178 Initial 20 | . . 5 . 20 Average 13 | . 12 2 16 76 Maximum Alert Level . | . . . . . Low Security (%) 100 | 100 100 100 100 100 Level 1 . | . . . . . Level 2 . | . . . . . Level 3 . | . . . . . Level 4 . | . . . . . Level 5 . | . . . . . High Security . | . . . . . Max Security . | . . . . . Squads Dispatched 6 | . . . 3 3 Investigation 2 | . . . 1 1 Extermination . | . . . . . Reinforcement 4 | . . . 2 2 Assault . | . . . . . Garrison . | . . . . . Intercept . | . . . . . Searches Triggered . | . . . . . Construction Impeded . | . . . . . Haulers Reinforced . | . . . . . Active Scanning Responses . | . . . . . Cargo Convoy Interrupts . | . . . . . Stealth | -11 -10 -10 -9 -8 --------- Run | Scr Mat Min Mat Mat Distress Signals 3 | . . . 2 1 Communications Jammed . | . . . . . Distress Signals . | . . . . . Times Spotted 51 | . 2 3 16 30 Peak Tracking Total 24 | . 2 16 13 24 Tactical Retreats 5 | . . 1 1 3 Traps | -11 -10 -10 -9 -8 ------- Run | Scr Mat Min Mat Mat Traps Triggered 1 | . . . 1 . Indirectly . | . . . . . Trap Hack Attempts . | . . . . . Triggered . | . . . . . Disarmed . | . . . . . Reprogrammed . | . . . . . Reused . | . . . . . Traps Extracted . | . . . . . Installed . | . . . . . Triggered . | . . . . . Machines | -11 -10 -10 -9 -8 ---------- Run | Scr Mat Min Mat Mat Machines Disabled . | . . . . . Max in Single Turn . | . . . . . Machines Sabotaged . | . . . . . Garrisons Compromised . | . . . . . Overloaded Fab Kills . | . . . . . Hacking | -11 -10 -10 -9 -8 --------- Run | Scr Mat Min Mat Mat Machines Accessed 5 | . 1 . . 4 Terminals 5 | . 1 . . 4 Fabricators . | . . . . . Repair Stations . | . . . . . Recycling Units . | . . . . . Scanalyzers . | . . . . . Garrison Access . | . . . . . Total Hacks 15 | . 3 . . 12 Successful 10 | . 2 . . 8 Failed 5 | . 1 . . 4 Catastrophic 2 | . . . . 2 Database Lockouts . | . . . . . Manual 13 | . 3 . . 10 Terminals 15 | . 3 . . 12 Fabricators . | . . . . . Repair Stations . | . . . . . Recycling Units . | . . . . . Scanalyzers . | . . . . . Garrison Access . | . . . . . Terminal Hacks 7 | . 2 . . 5 Prototype ID Bank 1 | . 1 . . . Level Access Points 1 | . . . . 1 Branch Access Points 1 | . 1 . . . Terminal Index 1 | . . . . 1 Alert Level 1 | . . . . 1 Zone Layout 2 | . . . . 2 Fabricator Hacks . | . . . . . Repair Station Hacks . | . . . . . Recycling Unit Hacks . | . . . . . Scanalyzer . | . . . . . Garrison Access Hacks . | . . . . . Unauthorized Hacks 3 | . . . . 3 Terminals 3 | . . . . 3 Track 1 | . . . . 1 Disrupt 1 | . . . . 1 Operators 1 | . . . . 1 Fabricators . | . . . . . Repair Stations . | . . . . . Recycling Units . | . . . . . Scanalyzers . | . . . . . Garrison Access . | . . . . . Data Cores Recovered . | . . . . . Used . | . . . . . Hacking Detections 5 | . 1 . . 4 Full Trace Events 1 | . . . . 1 Feedback Events . | . . . . . Feedback Blocked . | . . . . . Robot Schematics Acquired . | . . . . . Robots Built . | . . . . . Authchips . | . . . . . Time . | . . . . . Total Robot Build Rating . | . . . . . Part Schematics Acquired . | . . . . . Parts Built . | . . . . . Authchips . | . . . . . Time . | . . . . . Total Part Build Rating . | . . . . . Parts Repaired . | . . . . . Time . | . . . . . Parts Recycled . | . . . . . Recycled Matter . | . . . . . Retrieved Matter . | . . . . . Retrieved Components . | . . . . . Parts Scanalyzed . | . . . . . Part Schematics Acquired . | . . . . . Parts Damaged . | . . . . . Bothacking | -11 -10 -10 -9 -8 ------------ Run | Scr Mat Min Mat Mat Used RIF Installer . | . . . . . Robots Hacked . | . . . . . Non-combat . | . . . . . Combat . | . . . . . Robot Hacks Applied . | . . . . . Relay Couplers Released . | . . . . . Fabnet Peak Effective % . | . . . . . Robots Rewired . | . . . . . Allies Hacked . | . . . . . Hacks Repelled . | . . . . . Allies | -11 -10 -10 -9 -8 -------- Run | Scr Mat Min Mat Mat Total Allies 3 | . . 3 . . Largest Group 3 | . . 3 . . Highest-Rated Group 40 | . . 40 . . Highest-Rated Ally 16 | . . 16 . . Total Orders . | . . . . . Ally Attacks 40 | . . 40 . . Total Damage 374 | . . 374 . . Kills 10 | . . 10 . . Allies Corrupted . | . . . . . Allies Melted . | . . . . . Intel | -11 -10 -10 -9 -8 ------- Run | Scr Mat Min Mat Mat Robot Analysis Total . | . . . . . Derelict Logs Recovered 1 | . . 1 . . Drone Launches . | . . . . . Drone Recoveries . | . . . . . Exploration | -11 -10 -10 -9 -8 ------------- Run | Scr Mat Min Mat Mat Turns Passed 961 | 8 22 744 66 121 Spaces Moved 601 | 1 42 217 121 220 Core 589 | 1 42 217 121 208 Treads . | . . . . . Legs . | . . . . . Wheels . | . . . . . Hover . | . . . . . Flight 12 | . . . . 12 Fastest Speed 35 | 50 50 50 50 35 Average Speed 49 | 50 50 50 50 49 Slowest Speed 50 | 50 50 50 50 50 Overloaded Moves . | . . . . . Propulsion Burnouts . | . . . . . Robots Hopped . | . . . . . Cave-ins Triggered . | . . . . . Exploration Rate (%) 27 | 2 17 54 26 40 Regions Visited 4 Branch Regions 1 Pre-discovered Areas . | . . . . . Known Exits Taken 1 | . 1 . . . Unknown Exits Taken 3 | 1 . 1 1 . Scrap Searched 1 | . . 1 . . Spaces Dug . | . . . . . Terrain Destroyed . | . . . . . Melee . | . . . . . Projectile . | . . . . . AOE . | . . . . . Terrain Rammed . | . . . . . Walls Destroyed . | . . . . . Machines Disabled . | . . . . . Actions | -11 -10 -10 -9 -8 --------- Run | Scr Mat Min Mat Mat Total 1260 | 12 42 851 125 230 Wait 634 | . . 634 . . Move 597 | . 41 216 120 220 Hop . | . . . . . Pick Up 1 | . 1 . . . Fast Attach 7 | . . . 1 6 Attach 2 | 2 . . . . Detach . | . . . . . Swap . | . . . . . Drop 12 | 10 . . . 2 Fire . | . . . . . Melee . | . . . . . Ram 7 | . . 1 4 2 Kick . | . . . . . Crush . | . . . . . Escape Stasis . | . . . . . Rewire . | . . . . . Trap . | . . . . . Miscellaneous . | . . . . . Route ------- -11/Scrapyard -10/Materials (discovered 2 exits: *Min x2) -10/Mines (discovered 2 exits: [*Mat x2]) -9/Materials (discovered 2 exits: *Mat / Sto) -8/Materials (discovered 3 exits: Fac x3) History --------- Turn | Location | Event 9 | -11/Scrapyard | Discovered new exit (range 0) 9 | -11/Scrapyard | Entered Materials 12 | -10/Materials | Identified exit to Mines 31 | -10/Materials | Entered Mines 63 | -10/Mines | Assembled infested the area 85 | -10/Mines | Discovered new exit (range 13) 116 | -10/Mines | Assisted by bots powering up and referring to "LRC-V3" 314 | -10/Mines | Build established: Mutant 771 | -10/Mines | Discovered new exit (range 8) 775 | -10/Mines | Entered Materials 775 | -9/Materials | Evolved 2 slots: Propulsion x1, Utility x1 776 | -9/Materials | Identified exit to Storage 834 | -9/Materials | Discovered new exit (range 16) 841 | -9/Materials | Entered another Materials area 841 | -8/Materials | Evolved 2 slots: Propulsion x1, Utility x1 950 | -8/Materials | Identified exit to Factory 954 | -8/Materials | Core integrity fell below 50% 959 | -8/Materials | Core integrity fell below 20% 962 | -8/Materials | Destroyed by G-47 Trooper with Particle Gun Last Messages --------------- 00950_ Connecting with Terminal... >>Access(Main) Found 3 level access points to Factory: (11,79) (79,89) (22,9) Map updated. >>Alert(Check) Current Alert Level: Low Security 00950_ Connecting with Terminal... >>Trojan(Disrupt) Trojan loaded successfully. Testing... Disruption routine running. 00950_ ALERT: Suspicious activity at Terminal M004. Dispatching Investigation squad. 00951_ Slammed into S-10 Pest. 00952_ K-01 Serf collects debris. 00956_ Slug penetrates U-05 Engineer. 00961_ U-05 Engineer builds a Door. Map ----- +----------------------------------------------------+ | ?????????????????????# # ###??????? | | ???????????#################+### #??????? | | ???????????# # #??????? | | ???????????# "" # # ?????? | | ???????????# """ T" # """"" # ?????? | | ???????????# """ "" # """"" # ????? | | ???????????# """ # """"" # ????? | | ???????????# ! # """"" # ???? | | ??????????###########+### a""""% # ???? | | ??????????# u """"" # ??? | | ??????????# g "%""" #? ??? | | ??????????+ #?? ?? | | ??????????# gg g #####+## | | ??????????# g h =]] | | ??????????########### s s ]%] | | ????????????????????# =]* | | ????????????????????#s g ####+#### | | ???????????????###### s gg #? ?? | | ???????????????# g g| # """ | | ???????????????# | # """ | | ???????????????# # """ ! | | ???????????????# # | | ???????????????# u #" "###### """ | | ???????????????# ##### #####"G"#????# """ | | ???????????????# ????# ##### " #????# ! """ | | ???????????????# ????#@ !!##???????# ??? ] | | ???????????????# ????# !!#????????####????# | | ??????????????? ?????# !!#????????########? | | ???????????????#?????# !!#????????"" | | ?????????????????????# [[#??????"T"" """ | | ?????????????????????# [[#???? """ | | ?????????????????????# #####???? """ | | ?????????????????????# #????????? ] | | ?????????????????????# #????????? ? | | ?????????????????????# #??????????##########? | | ?????????????????????# #????????????????????? | | ?????????????????????? #????????????????????? | | ?????????????????????? #????????????????????? | | ?????????????????????? #????????????????????? | | ?????????????????????? #????????????????????? | | ?????????????????????? +????????????????????? | | ?????????????????????? #????????????????????? | | ?????????????????????? #????????????????????? | | ??????????????????????# ?????????????????????? | | ???????????